[Event "Karel Janecek Open 2025"]
[Site "Prague"]
[Date "2025.03.01"]
[Round "3.3"]
[White "Grigoryan, Karen H."]
[Black "Gloeckler, Christian"]
[Result "1/2-1/2"]
[Annotator "ChessBase"]
[ECO "A34"]
[WhiteElo "2554"]
[BlackElo "2334"]
[PlyCount "118"]
[EventDate "2025.02.21"]
[EventType "swiss"]
[EventCountry "CZE"]
[SourceTitle "playchess.com"]
[Source "ChessBase"]
[SourceQuality "1"]
[TimeControl "40/5400+30:1800+30"]

1. Nf3 {[%emt 0:02:06]} Nf6 {[%emt 0:00:06]} 2. g3 {[%emt 0:00:11]} c5 {[%emt 0:00:05]} 3. Bg2 {[%emt 0:00:07]} Nc6 {[%emt 0:00:06]} 4. c4 {[%emt 0:00:05]} d5 {[%emt 0:00:06]} 5. cxd5 {[%emt 0:00:04]} Nxd5 {[%emt 0:00:05]} 6. Nc3 {[%emt 0:00:03]} Nc7 {[%emt 0:00:06]} 7. O-O {[%emt 0:00:59]} e5 {[%emt 0:00:05]} 8. d3 {[%emt 0:00:32]} Be7 {[%emt 0:00:08]} 9. Nd2 {[%emt 0:00:12]} Bd7 {[%emt 0:00:46]} 10. Nc4 {[%emt 0:00:08]} f6 {[%emt 0:00:57]} 11. f4 {[%emt 0:00:32]} b5 {[%emt 0:00:37]} 12. Ne3 {[%emt 0:00:20]} O-O {[%emt 0:01:17]} 13. f5 {[%emt 0:00:36]} Rb8 {[%emt 0:05:43]} 14. Bd2 {[%emt 0:00:14]} Nd4 {[%emt 0:01:26]} 15. Ne4 {[%emt 0:01:07]} Bc6 {[%emt 0:07:01]} 16. Rc1 {[%emt 0:01:06]} Na6 {[%emt 0:00:40]} 17. g4 {[%emt 0:04:02]} Qb6 {[%emt 0:05:52]} 18. Rf2 {[%emt 0:01:32]} Rbd8 {[%emt 0:02:07]} 19. b3 {[%emt 0:01:59]} Rd7 {[%emt 0:18:19]} 20. Kh1 {[%emt 0:00:23]} Rc8 {[%emt 0:01:54]} 21. Qg1 {[%emt 0:00:42]} h6 {[%emt 0:01:41]} 22. h4 {[%emt 0:00:38]} Kf7 {[%emt 0:00:47]} 23. Kh2 {[%emt 0:00:32]} Rh8 {[%emt 0:06:05]} 24. Kg3 {[%emt 0:00:17]} Ke8 {[%emt 0:05:46]} 25. Qh1 {[%emt 0:07:33]} Kd8 {[%emt 0:05:28]} 26. Qe1 {[%emt 0:04:13]} Qb7 {[%emt 0:06:07]} 27. a4 {[%emt 0:01:25]} b4 {[%emt 0:02:18]} 28. Qd1 {[%emt 0:01:08]} Qb8 {[%emt 0:02:13]} 29. Nc4 {[%emt 0:02:09]} Bd5 {[%emt 0:01:09]} 30. e3 {[%emt 0:00:15]} Nc6 {[%emt 0:00:27]} 31. Qc2 {[%emt 0:00:14]} Kc8 {[%emt 0:02:19]} 32. Rg1 {[%emt 0:01:38]} Kb7 {[%emt 0:01:39]} 33. Bf3 {[%emt 0:00:44]} Qc7 {[%emt 0:02:08]} 34. Rfg2 {[%emt 0:01:24]} Rhd8 {[%emt 0:01:29]} 35. Be1 {[%emt 0:01:04]} Na5 {[%emt 0:01:25]} 36. Ncd2 {[%emt 0:02:36]} Qb6 {[%emt 0:03:46]} 37. Kf2 {[%emt 0:00:35]} Bc6 {[%emt 0:00:45]} 38. Nc4 {[%emt 0:01:32]} Qc7 {[%emt 0:01:19]} 39. Be2 {[%emt 0:01:24]} Kb8 {[%emt 0:02:06]} 40. Ncd2 {[%emt 0:01:29]} Qb7 {[%emt 0:02:05]} 41. g5 {[%emt 0:34:04]} fxg5 {[%emt 0:32:14]} 42. hxg5 {[%emt 0:00:07]} hxg5 {[%emt 0:03:09]} 43. Rxg5 {[%emt 0:01:59]} Bxg5 {[%emt 0:03:07]} 44. Rxg5 {[%emt 0:00:08]} Bd5 {[%emt 0:00:50]} 45. Kg1 {[%emt 0:01:37]} Rc7 {[%emt 0:02:35]} 46. Bg3 {[%emt 0:00:20]} Re7 {[%emt 0:00:00]} 47. Rg6 {[%emt 0:00:00]} Nc6 {[%emt 0:00:00]} 48. Nd6 {[%emt 0:00:00]} Qc7 {[%emt 0:00:00]} 49. Nb5 {[%emt 0:00:00]} Qc8 {[%emt 0:00:00]} 50. Bg4 {[%emt 0:00:00]} Rf8 {[%emt 0:00:00]} 51. Nc4 {[%emt 0:00:00]} Rf6 {[%emt 0:00:00]} 52. Rg5 {[%emt 0:00:00]} Ka8 {[%emt 0:00:00]} 53. Qh2 {[%emt 0:00:00]} Qd8 {[%emt 0:00:44]} 54. Qc2 {[%emt 0:00:55]} Rh6 {[%emt 0:00:58]} 55. Rg6 {[%emt 0:01:50]} Qh8 {[%emt 0:00:57]} 56. e4 {[%emt 0:02:07]} Rxg6 {[%emt 0:01:02]} 57. fxg6 {[%emt 0:00:05]} Be6 {[%emt 0:00:12]} 58. Bf5 {[%emt 0:00:32]} Qh5 {[%emt 0:01:07]} 59. Ncd6 {[%emt 0:00:27]} Bg8 {[%emt 0:01:51]} 1/2-1/2

[Event "Karel Janecek Open 2025"]
[Site "Prague"]
[Date "2025.03.01"]
[Round "3.4"]
[White "Kistrup, Nicolai"]
[Black "Sasikiran, Krishnan"]
[Result "1/2-1/2"]
[Annotator "ChessBase"]
[ECO "B15"]
[WhiteElo "2374"]
[BlackElo "2548"]
[PlyCount "56"]
[EventDate "2025.02.21"]
[EventType "swiss"]
[EventCountry "CZE"]
[SourceTitle "playchess.com"]
[Source "ChessBase"]
[SourceQuality "1"]
[TimeControl "40/5400+30:1800+30"]

1. e4 {[%emt 0:00:07]} c6 {[%emt 0:01:54]} 2. Nc3 {[%emt 0:01:11]} d5 {[%emt 0:01:58]} 3. Nf3 {[%emt 0:00:13]} g6 {[%emt 0:04:51]} 4. d4 {[%emt 0:05:12]} Bg7 {[%emt 0:03:47]} 5. h3 {[%emt 0:11:25]} dxe4 {[%emt 0:04:45]} 6. Nxe4 {[%emt 0:00:12]} Nf6 {[%emt 0:00:19]} 7. Nxf6+ {[%emt 0:02:58]} exf6 {[%emt 0:01:12]} 8. Bc4 {[%emt 0:03:37]} O-O {[%emt 0:03:07]} 9. O-O {[%emt 0:01:33]} Nd7 {[%emt 0:07:44]} 10. Bf4 {[%emt 0:14:40]} Nb6 {[%emt 0:04:42]} 11. Bb3 {[%emt 0:00:34]} a5 {[%emt 0:01:51]} 12. a4 {[%emt 0:04:07]} Nd5 {[%emt 0:02:51]} 13. Bh2 {[%emt 0:01:48]} Bh6 {[%emt 0:12:51]} 14. Re1 {[%emt 0:14:51]} Re8 {[%emt 0:05:46]} 15. Rxe8+ {[%emt 0:03:58]} Qxe8 {[%emt 0:00:06]} 16. Qe1 {[%emt 0:03:33]} Be6 {[%emt 0:10:09]} 17. Nd2 {[%emt 0:09:46]} f5 {[%emt 0:07:31]} 18. Nc4 {[%emt 0:02:55]} Qd8 {[%emt 0:02:04]} 19. Nd6 {[%emt 0:06:57]} b6 {[%emt 0:04:10]} 20. Rd1 {[%emt 0:06:11]} Bf8 {[%emt 0:11:56]} 21. Nc4 {[%emt 0:00:59]} b5 {[%emt 0:03:08]} 22. Ne5 {[%emt 0:01:22]} Qb6 {[%emt 0:01:43]} 23. axb5 {[%emt 0:00:37]} cxb5 {[%emt 0:00:16]} 24. Nd7 {[%emt 0:01:42]} Bxd7 {[%emt 0:01:39]} 25. Bxd5 {[%emt 0:00:04]} Re8 {[%emt 0:01:13]} 26. Qd2 {[%emt 0:00:20]} Bd6 {[%emt 0:01:05]} 27. Bf4 {[%emt 0:01:39]} a4 {[%emt 0:00:20]} 28. Bf3 {[%emt 0:00:41]} b4 {[%emt 0:00:49]} 1/2-1/2

[Event "Karel Janecek Open 2025"]
[Site "Prague"]
[Date "2025.03.01"]
[Round "3.5"]
[White "Vetoshko, Volodymyr"]
[Black "Stevik, Patrik"]
[Result "1/2-1/2"]
[Annotator "TA"]
[ECO "D34"]
[WhiteElo "2529"]
[BlackElo "2331"]
[PlyCount "150"]
[EventDate "2025.02.21"]
[EventType "swiss"]
[EventCountry "CZE"]
[SourceTitle "playchess.com"]
[Source "ChessBase"]
[SourceQuality "1"]
[TimeControl "40/5400+30:1800+30"]

{[%evp 24,150,10,20,32,32,32,28,30,27,30,29,46,33,79,79,79,79,79,78,99,77,76,82,79,80,109,108,114,99,99,99,100,99,104,107,110,103,103,72,76,72,72,72,64,8,52,59,131,0,0,1,104,15,22,0,104,104,104,104,104,104,104,104,104,104,104,104,104,104,104,104,104,104,104,104,104,104,104,104,104,104,104,52,70,29,33,29,37,37,45,45,45,45,64,45,39,0,73,67,89,79,79,66,80,92,62,38,296,0,0,0,0,0,0,0,0,0,0,0,0,0,0,0,0,0,0,0,0]} 1. d4 {[%emt 0:01:03]} d5 {[%emt 0:00:01]} 2. c4 {[%emt 0:00:07]} e6 {[%emt 0:00:02]} 3. Nc3 {[%emt 0:00:14]} c5 {[%emt 0:00:02]} 4. cxd5 {[%emt 0:00:26]} exd5 {[%emt 0:00:02]} 5. Nf3 {[%emt 0:00:26]} Nf6 {[%emt 0:00:05]} 6. Bg5 {[%emt 0:01:05]} Be6 {[%emt 0:00:02]} 7. g3 {[%emt 0:00:41]} Be7 {[%emt 0:03:53]} 8. dxc5 {[%emt 0:01:51]} Bxc5 {[%emt 0:01:16]} 9. Bg2 {[%emt 0:03:41]} O-O {[%emt 0:01:38]} 10. O-O {[%emt 0:00:25]} Nc6 {[%emt 0:03:00]} 11. Rc1 {[%emt 0:03:16]} Be7 {[%emt 0:06:31]} 12. Na4 {[%emt 0:08:43]} h6 {[%emt 0:04:37]} 13. Be3 {[%emt 0:02:30]} Ne4 {[%emt 0:04:59] D34: Tarrasch Defence: 6 g3 Nf6 7 Bg2 Be7.} 14. Nd4 {[%emt 0:02:55]} Nxd4 {[%emt 0:04:09]} 15. Bxd4 {[%emt 0:00:19]} b6 {[%emt 0:04:18] White has an edge.} 16. Nc3 {[%emt 0:02:57]} Nxc3 $146 {[%emt 0:06:25]} ({Predecessor:} 16... f5 17. Nb5 Bc5 18. b4 Bxd4 19. Qxd4 Qd7 20. Rc7 {1-0 Malo Guillen,J (2170)-Aparicio Navarro,P (2175) Aragon-chT Preferente A 2013 (8.37)}) 17. Rxc3 {[%emt 0:01:56][%cal Bc1c3,Bc3d3,Bd3d4][%mdl 32]} Rc8 {[%emt 0:00:47]} 18. Rd3 {[%emt 0:21:04]} Bf6 {[%emt 0:10:14]} (18... Qc7 $14) 19. b3 $16 {[%emt 0:14:52]} Bxd4 {[%emt 0:02:28]} 20. Rxd4 {[%emt 0:00:01]} Qf6 {[%emt 0:00:23]} 21. Bxd5 {[%emt 0:02:56]} Rcd8 {[%emt 0:11:59]} 22. e3 {[%emt 0:08:05]} Bxd5 {[%emt 0:00:56]} 23. Rxd5 {[%emt 0:00:02]} Rxd5 {[%emt 0:00:10]} 24. Qxd5 {[%emt 0:00:01][%mdl 4096] Endgame KQR-KQR. White is a pawn up.} Qb2 {[%emt 0:00:10]} 25. a4 {[%emt 0:00:24]} g6 {[%emt 0:04:03]} 26. h4 {[%emt 0:06:51]} h5 {[%emt 0:00:46]} 27. Rd1 {[%emt 0:00:52]} Rc8 {[%emt 0:00:17] Against Qc4} 28. Rd2 {[%emt 0:04:07]} Rc1+ {[%emt 0:05:33]} 29. Kg2 {[%emt 0:00:13]} Rc2 {[%emt 0:03:17]} 30. Rxc2 {[%emt 0:00:55]} Qxc2 {[%emt 0:00:02] KQ-KQ. White is a pawn up.} 31. e4 {[%emt 0:02:44]} Qc3 {[%emt 0:00:59]} 32. e5 {[%emt 0:01:07]} Qc8 {[%emt 0:03:00] Prevents e6} 33. b4 {[%emt 0:02:28]} Kg7 {[%emt 0:00:43]} 34. b5 {[%emt 0:02:10]} (34. Qd4 $14) 34... Qf5 {[%emt 0:01:35]} 35. Qd4 {[%emt 0:00:54]} Qe6 {[%emt 0:01:20]} (35... Kg8 $1 $14) 36. Qe4 {[%emt 0:00:39]} (36. Kh2 $16) 36... Qd7 {[%emt 0:01:15]} 37. Kh2 {[%emt 0:03:53]} Kg8 {[%emt 0:03:02] [#]} (37... Qd2 $11 {keeps the balance.}) 38. Kg1 {[%emt 0:00:34]} (38. e6 $1 $16 {[%cal Re6d7]} Qxe6 39. Qa8+ Kg7 40. Qxa7) 38... Kg7 {[%emt 0:03:54]} 39. Kh2 {[%emt 0:00:08]} ({Better is} 39. Kg2 $11) 39... Kg8 {[%emt 0:00:07] [#]} 40. e6 $1 {[%emt 0:02:01][%mdl 512]} Qe7 {[%emt 0:04:32]} 41. exf7+ {[%emt 0:30:46]} Qxf7 {[%emt 0:30:01]} 42. Kg2 {[%emt 0:00:00]} Kh7 {[%emt 0:00:00]} 43. Qd4 {[%emt 0:00:00]} Qb7+ {[%emt 0:00:00]} 44. Kf1 {[%emt 0:00:00] White is more active.} Qe7 {[%emt 0:00:00]} 45. Qf4 {[%emt 0:00:00]} Kg7 {[%emt 0:00:00]} 46. Qe3 {[%emt 0:00:00]} Qf6 {[%emt 0:00:00]} 47. Qe4 {[%emt 0:00:00]} Qf7 {[%emt 0:00:00] Inhibits Qb7.} 48. Ke2 {[%emt 0:00:00]} Kh7 {[%emt 0:00:00]} 49. Qd4 {[%emt 0:00:00]} Qe6+ {[%emt 0:00:00]} 50. Kd2 {[%emt 0:00:00]} Qa2+ {[%emt 0:00:00]} 51. Ke3 {[%emt 0:00:00]} Qe6+ {[%emt 0:00:00]} 52. Qe4 {[%emt 0:00:00]} Qd7 {[%emt 0:00:00]} 53. f3 {[%emt 0:00:00]} (53. Kf3 $16) 53... Qc7 {[%emt 0:00:00]} 54. g4 {[%emt 0:00:00]} hxg4 {[%emt 0:00:00]} 55. Qxg4 {[%emt 0:00:00]} Qe5+ {[%emt 0:00:00]} 56. Qe4 {[%emt 0:00:00]} Qc5+ {[%emt 0:00:00]} 57. Ke2 {[%emt 0:00:00]} Qc7 {[%emt 0:02:06]} 58. Kd3 {[%emt 0:00:18]} Kh6 {[%emt 0:00:24]} 59. Qe3+ {[%emt 0:01:59]} Kh7 {[%emt 0:00:01]} 60. Qe4 {[%emt 0:02:18]} Kh6 $1 {[%emt 0:00:25]} 61. Qd4 {[%emt 0:00:55]} Kh7 {[%emt 0:00:50] Inhibits Qh8+.} 62. Qd5 {[%emt 0:00:31]} Qf4 {[%emt 0:02:45]} 63. h5 {[%emt 0:00:52]} Kh6 $1 {[%emt 0:02:06]} 64. hxg6 {[%emt 0:00:32][%cal Og6g7]} Qxa4 {[%emt 0:00:01][%cal Oa7a5]} 65. Qc6 {[%emt 0:01:15][%cal Og6g7]} Qf4 $2 {[%emt 0:02:55][%mdl 8192]} (65... a5 $14) 66. Kc3 $2 {[%emt 0:01:46]} (66. g7+ $18 Kxg7 67. Qd5) 66... Qe3+ $11 {[%emt 0:04:17] The position is equal.} 67. Kc4 {[%emt 0:00:26]} a5 {[%emt 0:01:22]} 68. bxa6 {[%emt 0:01:01][%cal Og6g7] aiming for g7+!.} Qe2+ {[%emt 0:00:04]} 69. Kd4 {[%emt 0:01:14]} Qxa6 {[%emt 0:00:01]} 70. Ke5 {[%emt 0:01:22]} Qa5+ {[%emt 0:03:51]} 71. Kf6 {[%emt 0:00:33]} Qg5+ {[%emt 0:00:42]} 72. Kf7 {[%emt 0:00:23]} Qf5+ {[%emt 0:00:04]} 73. Qf6 {[%emt 0:00:33]} Qd7+ {[%emt 0:00:04]} 74. Kf8 {[%emt 0:00:28] Threatening mate with g7+.} Qc8+ {[%emt 0:00:06]} 75. Ke7 {[%emt 0:00:26]} Qc7+ {[%emt 0:00:35] Weighted Error Value: White=0.14 (very precise) /Black=0.10 (very precise)   Loses game:     	---       	Black=1      Missed win:     	White=1     	---        Mistake:       	White=5     	Black=3      Inaccurate:     	White=2     	Black=2      OK:         	White=24    	Black=29     Best:        	White=2     	Black=5      Strong:       	---       	Black=2      Brilliant:      	White=1     	---} 1/2-1/2

[Event "Karel Janecek Open 2025"]
[Site "Prague"]
[Date "2025.03.01"]
[Round "3.7"]
[White "Beerdsen, Thomas"]
[Black "Polyakov, Maxim"]
[Result "1-0"]
[Annotator "ChessBase"]
[ECO "B12"]
[WhiteElo "2511"]
[BlackElo "2327"]
[PlyCount "57"]
[EventDate "2025.02.21"]
[EventType "swiss"]
[EventCountry "CZE"]
[SourceTitle "playchess.com"]
[Source "ChessBase"]
[SourceQuality "1"]
[TimeControl "40/5400+30:1800+30"]

1. e4 {[%emt 0:00:04]} c6 {[%emt 0:32:28]} 2. d4 {[%emt 0:02:51]} d5 {[%emt 0:00:49]} 3. e5 {[%emt 0:00:18]} a6 {[%emt 0:00:07]} 4. Bd3 {[%emt 0:03:43]} c5 {[%emt 0:00:04]} 5. c3 {[%emt 0:05:20]} Nc6 {[%emt 0:00:04]} 6. Ne2 {[%emt 0:01:32]} e6 {[%emt 0:00:16]} 7. Nd2 {[%emt 0:01:43]} Nh6 {[%emt 0:02:54]} 8. Nf3 {[%emt 0:02:17]} Nf5 {[%emt 0:00:23]} 9. h4 {[%emt 0:02:39]} cxd4 {[%emt 0:04:11]} 10. cxd4 {[%emt 0:04:42]} Be7 {[%emt 0:00:43]} 11. Bg5 {[%emt 0:04:37]} h6 {[%emt 0:05:21]} 12. Bxe7 {[%emt 0:00:43]} Nfxe7 {[%emt 0:00:02]} 13. a3 {[%emt 0:03:02]} Bd7 {[%emt 0:00:46]} 14. b4 {[%emt 0:01:59]} a5 {[%emt 0:01:08]} 15. b5 {[%emt 0:00:16]} Na7 {[%emt 0:00:00]} 16. a4 {[%emt 0:00:33]} Rc8 {[%emt 0:07:06]} 17. Qd2 {[%emt 0:01:35]} b6 {[%emt 0:00:16]} 18. h5 {[%emt 0:03:44]} Nf5 {[%emt 0:06:21]} 19. g4 {[%emt 0:00:30]} Ne7 {[%emt 0:00:01]} 20. Rg1 {[%emt 0:03:19]} Qc7 {[%emt 0:00:55]} 21. g5 {[%emt 0:01:57]} Nf5 {[%emt 0:00:11]} 22. gxh6 {[%emt 0:08:18]} gxh6 {[%emt 0:00:16]} 23. Qf4 {[%emt 0:02:59]} Qd8 {[%emt 0:00:24]} 24. Bxf5 {[%emt 0:02:27]} exf5 {[%emt 0:09:20]} 25. Nh4 {[%emt 0:00:18]} Qe7 {[%emt 0:03:09]} 26. Nxf5 {[%emt 0:00:09]} Qb4+ {[%emt 0:00:34]} 27. Kf1 {[%emt 0:00:05]} Bxf5 {[%emt 0:01:05]} 28. Qxf5 {[%emt 0:00:05]} Qb2 {[%emt 0:00:12]} 29. Re1 {[%emt 0:00:23]} 1-0

[Event "Karel Janecek Open 2025"]
[Site "Prague"]
[Date "2025.03.01"]
[Round "3.8"]
[White "Popovic, Dusan"]
[Black "Simek, Petr"]
[Result "1/2-1/2"]
[Annotator "TA"]
[ECO "C67"]
[WhiteElo "2494"]
[BlackElo "2322"]
[PlyCount "126"]
[EventDate "2025.02.21"]
[EventType "swiss"]
[EventCountry "CZE"]
[SourceTitle "playchess.com"]
[Source "ChessBase"]
[SourceQuality "1"]
[TimeControl "40/5400+30:1800+30"]

{[%evp 18,126,21,15,14,12,29,22,29,8,25,7,25,11,27,24,34,27,31,27,31,32,31,29,27,31,36,11,44,0,0,0,0,-60,-6,-28,-28,-120,-121,-131,-135,-119,-107,-102,-109,-108,-110,-111,-111,-122,-102,-109,-107,-106,-101,-97,-95,-101,-96,-108,-83,-80,-71,-79,-79,-78,-75,-77,-82,-82,-79,-76,-72,-74,-75,-75,-63,-62,-66,-87,-65,-102,-87,-96,-89,-152,-59,-70,-43,-62,-57,-77,-35,-187,-57,-105,-92,-103,-102,-125,-81,-82,-2,-2,-2,0,0,0,0,-22,-22]} 1. e4 {[%emt 0:00:04]} e5 {[%emt 0:00:05]} 2. Nf3 {[%emt 0:00:16]} Nc6 {[%emt 0:00:06]} 3. Bb5 {[%emt 0:00:07]} Nf6 {[%emt 0:00:06]} 4. O-O {[%emt 0:00:27][%cal Bh1f1,Bf1e1,Be1e5][%mdl 32]} Nxe4 {[%emt 0:00:04]} 5. Re1 {[%emt 0:00:14]} Nd6 {[%emt 0:00:05]} 6. Nxe5 {[%emt 0:00:11]} Be7 {[%emt 0:00:07]} 7. Bf1 {[%emt 0:00:23]} Nxe5 {[%emt 0:00:07]} 8. Rxe5 {[%emt 0:00:07]} O-O {[%emt 0:00:08]} 9. d4 {[%emt 0:00:19]} Bf6 {[%emt 0:00:15]} 10. Re1 {[%emt 0:00:09]} Re8 {[%emt 0:00:18] C67: Ruy Lopez: Berlin Defence: 4 0-0 Nxe4.} 11. c3 {[%emt 0:00:27]} Rxe1 {[%emt 0:00:23]} 12. Qxe1 {[%emt 0:00:07]} Ne8 {[%emt 0:00:25]} 13. d5 {[%emt 0:02:50]} d6 {[%emt 0:02:46]} 14. Be3 {[%emt 0:27:42]} Bd7 {[%emt 0:24:09]} 15. Qd2 {[%emt 0:01:25]} h6 {[%emt 0:08:06]} 16. c4 {[%emt 0:05:32]} Bg5 {[%emt 0:04:03]} 17. f4 {[%emt 0:00:36]} Bf6 {[%emt 0:01:22]} 18. Nc3 {[%emt 0:00:28][%cal Bb1c3,Bc3b5,Bb5d4][%mdl 32]} Bf5 $146 {[%emt 0:00:37]} ({Predecessor:} 18... c6 19. dxc6 bxc6 20. b3 d5 21. cxd5 cxd5 22. Rc1 Be6 23. Nb5 Qe7 24. h3 Qb7 {½-½ Armani,G (2344)-Woznica,M (2385) VW-Cup13 Gr47 email 2021}) 19. Re1 {[%emt 0:10:03]} g6 {[%emt 0:10:59]} 20. Nb5 {[%emt 0:13:28]} a6 {[%emt 0:03:03]} 21. Nd4 {[%emt 0:00:09]} Ng7 {[%emt 0:00:06]} 22. Bf2 {[%emt 0:16:43]} Qd7 {[%emt 0:07:27]} 23. b4 {[%emt 0:00:29]} Re8 {[%emt 0:09:26]} 24. Rxe8+ {[%emt 0:02:45]} Qxe8 {[%emt 0:00:17]} 25. c5 {[%emt 0:01:30]} (25. Nxf5 $11 Nxf5 26. Bd3) 25... Be4 {[%emt 0:02:29]} (25... Qe4 $15 26. Nb3 Qc2) 26. Nb3 {[%emt 0:00:05]} Qd7 {[%emt 0:04:26]} 27. Bc4 {[%emt 0:04:30]} (27. Na5 $1 $11 {remains equal.}) 27... Qg4 $17 {[%emt 0:01:28][%csl Ge4][%cal Rg4g2]} 28. Bf1 {[%emt 0:01:06]} Qf5 $1 {[%emt 0:01:08]} 29. Na5 {[%emt 0:07:43]} Qxd5 {[%emt 0:06:48]} (29... dxc5 {with more complications.} 30. Nxb7 c4 31. Bxc4 Bxg2 32. Bg3 Qb1+) 30. Qxd5 {[%emt 0:01:18]} Bxd5 {[%emt 0:00:01]} 31. cxd6 {[%emt 0:00:33]} cxd6 {[%emt 0:00:05][%cal Of6c3]} 32. Bc4 {[%emt 0:01:08]} Be4 {[%emt 0:00:35]} 33. b5 {[%emt 0:00:33]} axb5 {[%emt 0:00:54]} 34. Bxb5 {[%emt 0:00:01]} Ne6 {[%emt 0:01:32]} 35. Nc4 {[%emt 0:00:12]} Be7 {[%emt 0:04:10]} 36. g3 {[%emt 0:00:04]} Nc7 {[%emt 0:02:53]} 37. Bd7 {[%emt 0:00:23]} Bd5 {[%emt 0:03:54]} 38. Na5 {[%emt 0:00:07]} Bxa2 {[%emt 0:01:55]} 39. Nxb7 {[%emt 0:00:05]} Bd5 {[%emt 0:00:09]} 40. Na5 {[%emt 0:00:22]} Kf8 {[%emt 0:02:33]} 41. f5 {[%emt 0:34:15]} Bf6 {[%emt 0:04:09]} 42. fxg6 {[%emt 0:00:00]} fxg6 {[%emt 0:00:13]} 43. Be3 {[%emt 0:00:00]} h5 {[%emt 0:01:02]} 44. Kf2 {[%emt 0:00:00]} Ke7 {[%emt 0:04:33]} 45. Ba4 {[%emt 0:00:00]} Ne6 {[%emt 0:06:04]} 46. Nc6+ {[%emt 0:00:00]} Kf7 {[%emt 0:00:06]} 47. Nb4 {[%emt 0:00:00]} Bc4 {[%emt 0:00:25]} 48. Bc2 {[%emt 0:00:00]} d5 {[%emt 0:02:10]} 49. Nc6 {[%emt 0:00:00]} d4 {[%emt 0:00:53]} 50. Bd2 {[%emt 0:00:00]} Nc5 {[%emt 0:03:25]} 51. Bf4 {[%emt 0:00:00] [#]} (51. Bb4 d3 52. Bd1) 51... d3 {[%emt 0:06:50]} (51... Bd3 $1 $17 {[%cal Rd3c2]} 52. Nb4 Bxc2 53. Nxc2 Ke6) 52. Bd1 $15 {[%emt 0:00:00]} Ke6 {[%emt 0:00:24] Prevents Ne5.} 53. Ke3 {[%emt 0:00:42]} Bb2 {[%emt 0:02:49]} 54. h4 {[%emt 0:04:04]} Ba6 {[%emt 0:02:51]} 55. Nd4+ $2 {[%emt 0:02:25]} ({White should play} 55. Nb4 $15) 55... Kf7 {[%emt 0:00:40]} (55... Kd5 $19 56. Nf3 Bc8) 56. Nf3 {[%emt 0:01:07]} (56. Nb3 $15 Nxb3 57. Bxb3+ Kf6 58. Bd5) 56... Bc1+ $17 {[%emt 0:00:14]} 57. Nd2 {[%emt 0:00:38] [#]} Kf6 $1 {[%emt 0:00:26]} 58. Bh6 {[%emt 0:01:03]} Kf5 {[%emt 0:00:37] ...Ne4 would now be deadly.} 59. Kd4 {[%emt 0:00:27]} Bxd2 {[%emt 0:01:33]} ({Black should play} 59... Ne6+ $17 60. Kc3 Ba3) 60. Bxd2 $11 {[%emt 0:00:13] The position is equal.} Ne4 {[%emt 0:00:37]} 61. Bf4 {[%emt 0:00:27]} Nf2 {[%emt 0:00:35]} 62. Bf3 {[%emt 0:00:20]} Ng4 {[%emt 0:00:39]} 63. Bxg4+ {[%emt 0:00:24]} Kxg4 {[%emt 0:00:07] Weighted Error Value: White=0.18 (very precise) /Black=0.15 (very precise)   Mistake:       	White=5     	Black=4      Inaccurate:     	White=2     	Black=4      OK:         	White=20    	Black=22     Best:        	White=3     	Black=1      Strong:       	---       	Black=1} 1/2-1/2

[Event "Karel Janecek Open 2025"]
[Site "Prague"]
[Date "2025.03.01"]
[Round "3.9"]
[White "Filgueiras, Nathan Felipe"]
[Black "Ghazarian, Kirk"]
[Result "1/2-1/2"]
[Annotator "ChessBase"]
[ECO "B32"]
[WhiteElo "2335"]
[BlackElo "2493"]
[PlyCount "83"]
[EventDate "2025.02.21"]
[EventType "swiss"]
[EventCountry "CZE"]
[SourceTitle "playchess.com"]
[Source "ChessBase"]
[SourceQuality "1"]
[TimeControl "40/5400+30:1800+30"]

1. e4 {[%emt 0:07:20]} c5 {[%emt 0:00:28]} 2. Nf3 {[%emt 0:00:43]} Nc6 {[%emt 0:00:22]} 3. d4 {[%emt 0:00:05]} cxd4 {[%emt 0:00:05]} 4. Nxd4 {[%emt 0:00:03]} e5 {[%emt 0:00:29]} 5. Nb5 {[%emt 0:01:06]} d6 {[%emt 0:00:23]} 6. c4 {[%emt 0:00:45]} Be6 {[%emt 0:00:25]} 7. Bd3 {[%emt 0:06:51]} g6 {[%emt 0:00:47]} 8. O-O {[%emt 0:01:11]} a6 {[%emt 0:00:28]} 9. N5c3 {[%emt 0:00:06]} Bg7 {[%emt 0:00:20]} 10. Nd5 {[%emt 0:01:47]} Nf6 {[%emt 0:14:44]} 11. Nbc3 {[%emt 0:01:36]} Bxd5 {[%emt 0:02:28]} 12. exd5 {[%emt 0:07:46]} Nd4 {[%emt 0:05:06]} 13. f4 {[%emt 0:05:17]} Nd7 {[%emt 0:05:34]} 14. fxe5 {[%emt 0:14:32]} dxe5 {[%emt 0:02:59]} 15. Rb1 {[%emt 0:09:07]} O-O {[%emt 0:14:07]} 16. b4 {[%emt 0:01:56]} Nb6 {[%emt 0:19:28]} 17. Ne4 {[%emt 0:04:44]} Qc8 {[%emt 0:04:15]} 18. Bg5 {[%emt 0:10:26]} f5 {[%emt 0:05:59]} 19. Nd6 {[%emt 0:09:05]} Qd7 {[%emt 0:02:30]} 20. c5 {[%emt 0:00:08]} Kh8 {[%emt 0:07:13]} 21. Bc4 {[%emt 0:02:33]} Nxc4 {[%emt 0:02:05]} 22. Nxc4 {[%emt 0:00:03]} Qxd5 {[%emt 0:00:30]} 23. Nb6 {[%emt 0:00:08]} Qxa2 {[%emt 0:00:22]} 24. Nxa8 {[%emt 0:00:06]} Rxa8 {[%emt 0:00:14]} 25. Be3 {[%emt 0:03:27]} Ne2+ {[%emt 0:10:46]} 26. Kh1 {[%emt 0:00:10]} Nc3 {[%emt 0:00:02]} 27. Qb3 {[%emt 0:00:46]} Qxb3 {[%emt 0:00:10]} 28. Rxb3 {[%emt 0:00:01]} e4 {[%emt 0:00:25]} 29. Rc1 {[%emt 0:04:43]} Rd8 {[%emt 0:01:21]} 30. Rbxc3 {[%emt 0:05:35]} Bxc3 {[%emt 0:00:04]} 31. Rxc3 {[%emt 0:00:04]} Rd1+ {[%emt 0:00:03]} 32. Bg1 {[%emt 0:00:06]} f4 {[%emt 0:00:05]} 33. h4 {[%emt 0:00:35]} e3 {[%emt 0:00:27]} 34. Rc2 {[%emt 0:00:15]} h6 {[%emt 0:01:12]} 35. Kh2 {[%emt 0:01:11]} Kh7 {[%emt 0:01:19]} 36. Re2 {[%emt 0:01:34]} Rd2 {[%emt 0:00:39]} 37. Re1 {[%emt 0:00:09]} Rb2 {[%emt 0:00:26]} 38. Kh3 {[%emt 0:01:51]} g5 {[%emt 0:00:27]} 39. hxg5 {[%emt 0:00:38]} hxg5 {[%emt 0:00:02]} 40. g3 {[%emt 0:00:58]} Rxb4 {[%emt 0:00:53]} 41. gxf4 {[%emt 0:30:44]} gxf4 {[%emt 0:30:12]} 42. Kg4 {[%emt 0:00:00]} 1/2-1/2